[Event "Late-Titled-Tuesday-Blitz-September-26-2023"]
[Site "Chess.com"]
[Date "2023.09.26"]
[Round "1"]
[White "FMOlexandrProhorov"]
[Black "Gameking51"]
[Result "0-1"]
[WhiteElo "2303"]
[BlackElo "2616"]
[TimeControl "180+1"]
[EndTime "14:08:24 PDT"]
[Termination "Gameking51 won on time"]

1. e4 {[%clk 0:02:57.4]} 1... c5 {[%clk 0:02:58.8]} 2. c3 {[%clk 0:02:57.2]}
2... Nf6 {[%clk 0:02:46.4]} 3. e5 {[%clk 0:02:52.4]} 3... Nd5 {[%clk 0:02:46.5]}
4. g3 {[%clk 0:02:52.9]} 4... d6 {[%clk 0:02:44.3]} 5. exd6 {[%clk 0:02:51.2]}
5... e6 {[%clk 0:02:38.4]} 6. Bg2 {[%clk 0:02:51.4]} 6... Bxd6 {[%clk
0:02:38.4]} 7. Nf3 {[%clk 0:02:51]} 7... O-O {[%clk 0:02:38]} 8. O-O {[%clk
0:02:50.4]} 8... Nc6 {[%clk 0:02:37.7]} 9. d4 {[%clk 0:02:51.1]} 9... cxd4
{[%clk 0:02:37.6]} 10. Nxd4 {[%clk 0:02:51.9]} 10... Nxd4 {[%clk 0:02:26.7]} 11.
Qxd4 {[%clk 0:02:52.8]} 11... Nf6 {[%clk 0:02:16.6]} 12. Rd1 {[%clk 0:02:35.5]}
12... Be7 {[%clk 0:02:16.5]} 13. Qxd8 {[%clk 0:02:33.8]} 13... Rxd8 {[%clk
0:02:17.4]} 14. Rxd8+ {[%clk 0:02:33.8]} 14... Bxd8 {[%clk 0:02:17.7]} 15. Na3
{[%clk 0:02:32.9]} 15... Nd5 {[%clk 0:01:56.9]} 16. c4 {[%clk 0:02:29.1]} 16...
Nb4 {[%clk 0:01:52.2]} 17. Bd2 {[%clk 0:02:23]} 17... Nc6 {[%clk 0:01:48.9]} 18.
Rd1 {[%clk 0:02:15.9]} 18... Bf6 {[%clk 0:01:48.4]} 19. b3 {[%clk 0:02:15.6]}
19... Bd7 {[%clk 0:01:47.1]} 20. Be3 {[%clk 0:02:13.1]} 20... Be8 {[%clk
0:01:45.2]} 21. Nb5 {[%clk 0:02:12.2]} 21... Be7 {[%clk 0:01:24.6]} 22. Nc7
{[%clk 0:02:07.3]} 22... Rc8 {[%clk 0:01:21.7]} 23. Nxe8 {[%clk 0:02:07]} 23...
Rxe8 {[%clk 0:01:22.4]} 24. Rd7 {[%clk 0:02:03.5]} 24... Nb4 {[%clk 0:00:13.5]}
25. Rxb7 {[%clk 0:01:55.6]} 25... Nxa2 {[%clk 0:00:11.6]} 26. Rxa7 {[%clk
0:01:53.3]} 26... Nc3 {[%clk 0:00:10.8]} 27. Bd2 {[%clk 0:01:40.6]} 27... Ne2+
{[%clk 0:00:09.2]} 28. Kf1 {[%clk 0:01:40.1]} 28... Nd4 {[%clk 0:00:09.7]} 29.
Rb7 {[%clk 0:01:36.6]} 29... Bf6 {[%clk 0:00:08.2]} 30. c5 {[%clk 0:01:33.6]}
30... Kf8 {[%clk 0:00:05.6]} 31. c6 {[%clk 0:01:33.6]} 31... Rc8 {[%clk
0:00:05.6]} 32. c7 {[%clk 0:01:31.4]} 32... Be5 {[%clk 0:00:03.7]} 33. Ba5
{[%clk 0:01:26.2]} 33... Ke7 {[%clk 0:00:02.9]} 34. f4 {[%clk 0:01:26.4]} 34...
Bd6 {[%clk 0:00:02.6]} 35. b4 {[%clk 0:01:18.9]} 35... Kd7 {[%clk 0:00:03]} 36.
b5 {[%clk 0:01:17.6]} 36... Nb3 {[%clk 0:00:03.2]} 37. Bb6 {[%clk 0:01:15.8]}
37... Bxc7 {[%clk 0:00:02.2]} 38. Bc6+ {[%clk 0:01:12.1]} 38... Kd8 {[%clk
0:00:02.4]} 39. Bxc7+ {[%clk 0:01:08.9]} 39... Rxc7 {[%clk 0:00:03.3]} 40. Rb8+
{[%clk 0:01:09.5]} 40... Ke7 {[%clk 0:00:03.6]} 41. Re8+ {[%clk 0:01:08]} 41...
Kf6 {[%clk 0:00:04]} 42. Kf2 {[%clk 0:01:05.2]} 42... Na5 {[%clk 0:00:04.4]} 43.
Bf3 {[%clk 0:00:57.9]} 43... Rc2+ {[%clk 0:00:04.4]} 44. Ke3 {[%clk 0:00:57.4]}
44... Rb2 {[%clk 0:00:05.2]} 45. Be2 {[%clk 0:00:56.6]} 45... g6 {[%clk
0:00:02.6]} 46. h4 {[%clk 0:00:56.2]} 46... h5 {[%clk 0:00:02.5]} 47. Rb8 {[%clk
0:00:54.8]} 47... Nb3 {[%clk 0:00:02.5]} 48. b6 {[%clk 0:00:52.3]} 48... Nc5
{[%clk 0:00:03]} 49. Bf3 {[%clk 0:00:51.1]} 49... Nd7 {[%clk 0:00:02.8]} 50. Rb7
{[%clk 0:00:41.9]} 50... Nxb6 {[%clk 0:00:03.4]} 51. Kd4 {[%clk 0:00:42]} 51...
Rb4+ {[%clk 0:00:03.3]} 52. Kc5 {[%clk 0:00:40]} 52... Rb3 {[%clk 0:00:03.8]}
53. Bc6 {[%clk 0:00:38.7]} 53... Na4+ {[%clk 0:00:03.4]} 54. Kd6 {[%clk
0:00:39]} 54... Rxb7 {[%clk 0:00:03.6]} 55. Bxb7 {[%clk 0:00:39.5]} 55... Nc3
{[%clk 0:00:04.5]} 56. Bf3 {[%clk 0:00:36.7]} 56... Kf5 {[%clk 0:00:05]} 57. Ke7
{[%clk 0:00:36.7]} 57... f6 {[%clk 0:00:05.5]} 58. Kf7 {[%clk 0:00:36.4]} 58...
e5 {[%clk 0:00:05.9]} 59. fxe5 {[%clk 0:00:33.8]} 59... fxe5 {[%clk 0:00:06.8]}
60. Kg7 {[%clk 0:00:32.4]} 60... e4 {[%clk 0:00:07.3]} 61. Bg2 {[%clk
0:00:32.2]} 61... e3 {[%clk 0:00:07.4]} 62. Bf1 {[%clk 0:00:32.8]} 62... e2
{[%clk 0:00:07.8]} 63. Bxe2 {[%clk 0:00:33.4]} 63... Nxe2 {[%clk 0:00:08.7]} 64.
Kh6 {[%clk 0:00:33.7]} 64... Nxg3 {[%clk 0:00:08.8]} 0-1

[Event "Late-Titled-Tuesday-Blitz-September-26-2023"]
[Site "Chess.com"]
[Date "2023.09.26"]
[Round "1"]
[White "Eduard_Limonov"]
[Black "Slovak_fighter2000"]
[Result "1-0"]
[WhiteElo "2831"]
[BlackElo "2443"]
[TimeControl "180+1"]
[EndTime "14:08:35 PDT"]
[Termination "Eduard_Limonov won on time"]

1. Nf3 {[%clk 0:03:00.9]} 1... Nf6 {[%clk 0:02:59.8]} 2. c4 {[%clk 0:03:01.1]}
2... e6 {[%clk 0:02:59.4]} 3. g3 {[%clk 0:03:01]} 3... b6 {[%clk 0:02:58.7]} 4.
Bg2 {[%clk 0:03:01]} 4... Bb7 {[%clk 0:02:59.2]} 5. b3 {[%clk 0:03:01.1]} 5...
c5 {[%clk 0:02:59.3]} 6. Bb2 {[%clk 0:03:01.3]} 6... Be7 {[%clk 0:02:59.7]} 7.
O-O {[%clk 0:03:01.3]} 7... O-O {[%clk 0:03:00.3]} 8. Nc3 {[%clk 0:02:58.6]}
8... d5 {[%clk 0:02:59.8]} 9. e3 {[%clk 0:02:55.4]} 9... Nc6 {[%clk 0:02:58.2]}
10. cxd5 {[%clk 0:02:55.5]} 10... Nxd5 {[%clk 0:02:57.1]} 11. Nxd5 {[%clk
0:02:53.7]} 11... Qxd5 {[%clk 0:02:55.5]} 12. d4 {[%clk 0:02:53.9]} 12... Qh5
{[%clk 0:02:48.6]} 13. Ne5 {[%clk 0:02:42.4]} 13... Qxd1 {[%clk 0:02:47.6]} 14.
Rfxd1 {[%clk 0:02:41.3]} 14... Nxe5 {[%clk 0:02:47.4]} 15. Bxb7 {[%clk
0:02:37.2]} 15... Rab8 {[%clk 0:02:46.6]} 16. Bg2 {[%clk 0:02:23.6]} 16... cxd4
{[%clk 0:02:34.4]} 17. Bxd4 {[%clk 0:01:57.2]} 17... Bf6 {[%clk 0:02:31.2]} 18.
h3 {[%clk 0:01:45.5]} 18... Rfd8 {[%clk 0:02:23.7]} 19. Rac1 {[%clk 0:01:22.9]}
19... Rd7 {[%clk 0:02:02.1]} 20. f4 {[%clk 0:01:12.8]} 20... Ng6 {[%clk
0:02:00.3]} 21. Bxf6 {[%clk 0:01:13]} 21... Rxd1+ {[%clk 0:01:56.2]} 22. Rxd1
{[%clk 0:01:13.9]} 22... gxf6 {[%clk 0:01:56]} 23. Rd7 {[%clk 0:01:14.2]} 23...
a5 {[%clk 0:01:50.4]} 24. Bf1 {[%clk 0:01:08.8]} 24... Rc8 {[%clk 0:01:24.1]}
25. Rb7 {[%clk 0:01:07.4]} 25... Rc6 {[%clk 0:01:22.6]} 26. Bb5 {[%clk
0:01:04.8]} 26... Rd6 {[%clk 0:01:22.4]} 27. Be8 {[%clk 0:01:03.5]} 27... Nh8
{[%clk 0:01:19.8]} 28. Kf2 {[%clk 0:01:00.1]} 28... Rd2+ {[%clk 0:01:11.9]} 29.
Kf3 {[%clk 0:00:59.9]} 29... Rxa2 {[%clk 0:01:12]} 30. Rxb6 {[%clk 0:00:59.9]}
30... Kf8 {[%clk 0:01:08.3]} 31. Ba4 {[%clk 0:00:56.5]} 31... Rd2 {[%clk
0:00:57.1]} 32. Rb8+ {[%clk 0:00:54.8]} 32... Kg7 {[%clk 0:00:56.2]} 33. Ra8
{[%clk 0:00:54.8]} 33... Rd5 {[%clk 0:00:54.5]} 34. h4 {[%clk 0:00:31.2]} 34...
Ng6 {[%clk 0:00:52.8]} 35. Rb8 {[%clk 0:00:28.6]} 35... Ne7 {[%clk 0:00:46.6]}
36. g4 {[%clk 0:00:25.7]} 36... Rc5 {[%clk 0:00:38.8]} 37. Rb7 {[%clk
0:00:15.4]} 37... Kf8 {[%clk 0:00:35.9]} 38. Rb8+ {[%clk 0:00:11.3]} 38... Kg7
{[%clk 0:00:35.9]} 39. Rb5 {[%clk 0:00:11.7]} 39... Rxb5 {[%clk 0:00:33.8]} 40.
Bxb5 {[%clk 0:00:12.6]} 40... f5 {[%clk 0:00:32.1]} 41. g5 {[%clk 0:00:07.2]}
41... Nd5 {[%clk 0:00:29.2]} 42. h5 {[%clk 0:00:06.9]} 42... h6 {[%clk
0:00:28.4]} 43. Bc4 {[%clk 0:00:05.9]} 43... Nc3 {[%clk 0:00:24.9]} 44. Bd3
{[%clk 0:00:05.5]} 44... Nd5 {[%clk 0:00:23.6]} 45. e4 {[%clk 0:00:05.3]} 45...
fxe4+ {[%clk 0:00:22]} 46. Bxe4 {[%clk 0:00:06.2]} 46... Nc7 {[%clk 0:00:16.9]}
47. Bc6 {[%clk 0:00:06.2]} 47... Na6 {[%clk 0:00:09.1]} 48. Ke3 {[%clk
0:00:06.6]} 48... Nc5 {[%clk 0:00:08.4]} 49. Ba4 {[%clk 0:00:06.9]} 49... e5
{[%clk 0:00:04.6]} 50. gxh6+ {[%clk 0:00:06.3]} 50... Kxh6 {[%clk 0:00:05.1]}
51. fxe5 {[%clk 0:00:07.1]} 51... Kxh5 {[%clk 0:00:05.5]} 52. Kd4 {[%clk
0:00:08]} 52... Ne6+ {[%clk 0:00:03.9]} 53. Kc4 {[%clk 0:00:08.1]} 53... Kg5
{[%clk 0:00:04.2]} 54. Kd5 {[%clk 0:00:08.3]} 54... Kg6 {[%clk 0:00:03.5]} 55.
Be8 {[%clk 0:00:08.4]} 55... Kg7 {[%clk 0:00:03.2]} 56. Bd7 {[%clk 0:00:08.2]}
56... Nf4+ {[%clk 0:00:03.3]} 57. Kc5 {[%clk 0:00:08.4]} 57... Ng6 {[%clk
0:00:03.4]} 58. Kd6 {[%clk 0:00:08.2]} 58... Kf8 {[%clk 0:00:03.2]} 59. Bf5
{[%clk 0:00:08.5]} 59... Nh4 {[%clk 0:00:03.1]} 60. Be4 {[%clk 0:00:08.5]} 60...
Kg7 {[%clk 0:00:03]} 61. e6 {[%clk 0:00:08.2]} 61... fxe6 {[%clk 0:00:02.7]} 62.
Kxe6 {[%clk 0:00:09.1]} 62... Kh6 {[%clk 0:00:02.6]} 63. Kf6 {[%clk 0:00:09.3]}
63... Kh5 {[%clk 0:00:02.9]} 64. Ke5 {[%clk 0:00:09.8]} 64... Kg4 {[%clk
0:00:03.3]} 65. Kd4 {[%clk 0:00:10.2]} 65... Kf4 {[%clk 0:00:03.9]} 66. Kd5
{[%clk 0:00:09.9]} 66... Ke3 {[%clk 0:00:02.5]} 67. Ke5 {[%clk 0:00:10.3]} 1-0

[Event "Late-Titled-Tuesday-Blitz-September-26-2023"]
[Site "Chess.com"]
[Date "2023.09.26"]
[Round "1"]
[White "cassoulet"]
[Black "topin8"]
[Result "0-1"]
[WhiteElo "2763"]
[BlackElo "2440"]
[TimeControl "180+1"]
[EndTime "14:08:36 PDT"]
[Termination "topin8 won by checkmate"]

1. d4 {[%clk 0:02:47.9]} 1... Nf6 {[%clk 0:02:52.8]} 2. Bg5 {[%clk 0:02:47.3]}
2... e6 {[%clk 0:02:34.2]} 3. e4 {[%clk 0:02:46.7]} 3... h6 {[%clk 0:02:34.2]}
4. Bxf6 {[%clk 0:02:45.4]} 4... Qxf6 {[%clk 0:02:35.1]} 5. Nf3 {[%clk
0:02:44.4]} 5... c5 {[%clk 0:02:23.5]} 6. Nc3 {[%clk 0:02:38.8]} 6... cxd4
{[%clk 0:02:16.4]} 7. Nxd4 {[%clk 0:02:39.7]} 7... Bc5 {[%clk 0:02:13.7]} 8. Nf3
{[%clk 0:02:28.7]} 8... Nc6 {[%clk 0:02:12.1]} 9. Bd3 {[%clk 0:02:28.2]} 9...
O-O {[%clk 0:02:11.6]} 10. O-O {[%clk 0:02:27.8]} 10... a6 {[%clk 0:02:06.2]}
11. a3 {[%clk 0:02:28]} 11... d6 {[%clk 0:02:06]} 12. Qe2 {[%clk 0:02:26.4]}
12... Ne5 {[%clk 0:01:51.2]} 13. Nxe5 {[%clk 0:02:25.8]} 13... dxe5 {[%clk
0:01:34.1]} 14. Rad1 {[%clk 0:02:18.9]} 14... Rd8 {[%clk 0:01:33.9]} 15. Bc4
{[%clk 0:02:15.9]} 15... Bd7 {[%clk 0:01:32.5]} 16. Rd3 {[%clk 0:02:06.6]} 16...
Bc6 {[%clk 0:01:27.9]} 17. Rfd1 {[%clk 0:02:03.8]} 17... b5 {[%clk 0:01:26.6]}
18. Bb3 {[%clk 0:02:02.1]} 18... Rxd3 {[%clk 0:01:25.7]} 19. Rxd3 {[%clk
0:02:01.9]} 19... Rd8 {[%clk 0:01:26]} 20. Rf3 {[%clk 0:02:00.6]} 20... Qg5
{[%clk 0:01:23.1]} 21. Qe1 {[%clk 0:01:50.6]} 21... Qd2 {[%clk 0:01:20.6]} 22.
Qxd2 {[%clk 0:01:44.5]} 22... Rxd2 {[%clk 0:01:20.4]} 23. Kf1 {[%clk 0:01:36.1]}
23... Rd4 {[%clk 0:01:10.5]} 24. Rd3 {[%clk 0:01:33.1]} 24... Kf8 {[%clk
0:01:04.4]} 25. f3 {[%clk 0:01:33.2]} 25... Ke7 {[%clk 0:01:03.5]} 26. Ne2
{[%clk 0:01:32.2]} 26... Rxd3 {[%clk 0:00:53.6]} 27. cxd3 {[%clk 0:01:33.1]}
27... Be3 {[%clk 0:00:54.4]} 28. Ke1 {[%clk 0:01:32]} 28... Kd6 {[%clk
0:00:52.1]} 29. Ba2 {[%clk 0:01:27.3]} 29... a5 {[%clk 0:00:49.9]} 30. b4 {[%clk
0:01:20.9]} 30... a4 {[%clk 0:00:40.4]} 31. Kd1 {[%clk 0:01:20.9]} 31... g6
{[%clk 0:00:37.2]} 32. g3 {[%clk 0:01:17.4]} 32... f5 {[%clk 0:00:25.1]} 33. Kc2
{[%clk 0:01:15.5]} 33... Bd4 {[%clk 0:00:17.5]} 34. Kc1 {[%clk 0:01:06.5]} 34...
g5 {[%clk 0:00:17.2]} 35. Kc2 {[%clk 0:00:50.9]} 35... g4 {[%clk 0:00:08.1]} 36.
Nxd4 {[%clk 0:00:49.1]} 36... exd4 {[%clk 0:00:08.3]} 37. fxg4 {[%clk
0:00:47.9]} 37... fxe4 {[%clk 0:00:08]} 38. dxe4 {[%clk 0:00:46.4]} 38... Bxe4+
{[%clk 0:00:08.9]} 39. Kd2 {[%clk 0:00:46.9]} 39... Bf3 {[%clk 0:00:06.7]} 40.
Bb1 {[%clk 0:00:27.1]} 40... Bxg4 {[%clk 0:00:06.1]} 41. Bd3 {[%clk 0:00:27.7]}
41... Kc6 {[%clk 0:00:04.2]} 42. Be4+ {[%clk 0:00:28.1]} 42... Kd6 {[%clk
0:00:04.5]} 43. Bd3 {[%clk 0:00:28.6]} 43... Kc6 {[%clk 0:00:04.6]} 44. Bg6
{[%clk 0:00:29]} 44... e5 {[%clk 0:00:03.5]} 45. Be8+ {[%clk 0:00:28.7]} 45...
Bd7 {[%clk 0:00:04]} 46. Bg6 {[%clk 0:00:27.8]} 46... Kd5 {[%clk 0:00:03.8]} 47.
Bf7+ {[%clk 0:00:28.3]} 47... Ke4 {[%clk 0:00:03.6]} 48. h4 {[%clk 0:00:27.4]}
48... Kf3 {[%clk 0:00:03.7]} 49. g4 {[%clk 0:00:23.3]} 49... Kxg4 {[%clk
0:00:03.7]} 50. Kd3 {[%clk 0:00:23.3]} 50... Bf5+ {[%clk 0:00:02.8]} 51. Kd2
{[%clk 0:00:23.2]} 51... Bd7 {[%clk 0:00:03.1]} 52. Kd3 {[%clk 0:00:23.3]} 52...
Kf4 {[%clk 0:00:03.7]} 53. Bd5 {[%clk 0:00:23]} 53... Bf5+ {[%clk 0:00:03.6]}
54. Kd2 {[%clk 0:00:23.5]} 54... Bd7 {[%clk 0:00:03.9]} 55. Kd3 {[%clk
0:00:23.3]} 55... Bf5+ {[%clk 0:00:02.7]} 56. Kd2 {[%clk 0:00:23.4]} 56... e4
{[%clk 0:00:03.6]} 57. Bc6 {[%clk 0:00:23.4]} 57... e3+ {[%clk 0:00:04]} 58. Ke1
{[%clk 0:00:23.8]} 58... d3 {[%clk 0:00:04]} 59. Bxb5 {[%clk 0:00:24.3]} 59...
d2+ {[%clk 0:00:03.5]} 60. Kd1 {[%clk 0:00:24.8]} 60... Bg4+ {[%clk 0:00:03.7]}
61. Be2 {[%clk 0:00:25.1]} 61... Be6 {[%clk 0:00:04.1]} 62. Kc2 {[%clk
0:00:20.5]} 62... Bb3+ {[%clk 0:00:04.2]} 63. Kd3 {[%clk 0:00:18.2]} 63... d1=Q+
{[%clk 0:00:04.8]} 64. Bxd1 {[%clk 0:00:19.1]} 64... Bxd1 {[%clk 0:00:05.2]} 65.
b5 {[%clk 0:00:20]} 65... Bf3 {[%clk 0:00:04.9]} 66. b6 {[%clk 0:00:19.9]} 66...
Bb7 {[%clk 0:00:05.3]} 67. Ke2 {[%clk 0:00:20]} 67... Ke4 {[%clk 0:00:05.3]} 68.
h5 {[%clk 0:00:20.6]} 68... Ba6+ {[%clk 0:00:05.6]} 69. Ke1 {[%clk 0:00:21.1]}
69... Kf3 {[%clk 0:00:05.8]} 70. Kd1 {[%clk 0:00:22]} 70... Bb7 {[%clk
0:00:04.7]} 71. Ke1 {[%clk 0:00:22.9]} 71... e2 {[%clk 0:00:04.5]} 72. Kd2
{[%clk 0:00:23.3]} 72... Kf2 {[%clk 0:00:05.2]} 73. Kc3 {[%clk 0:00:24]} 73...
e1=Q+ {[%clk 0:00:05.8]} 74. Kc4 {[%clk 0:00:24.9]} 74... Qe6+ {[%clk
0:00:04.6]} 75. Kb5 {[%clk 0:00:25.4]} 75... Qc6+ {[%clk 0:00:05.1]} 76. Ka5
{[%clk 0:00:25.9]} 76... Qc5+ {[%clk 0:00:05.1]} 77. Kxa4 {[%clk 0:00:26.8]}
77... Bc6+ {[%clk 0:00:05.4]} 78. Kb3 {[%clk 0:00:26.9]} 78... Qxb6+ {[%clk
0:00:06]} 79. Ka2 {[%clk 0:00:27.4]} 79... Bd5+ {[%clk 0:00:05.6]} 80. Ka1
{[%clk 0:00:28.3]} 80... Qb3 {[%clk 0:00:05.7]} 81. a4 {[%clk 0:00:29.2]} 81...
Qa2# {[%clk 0:00:06.4]} 0-1

[Event "Late-Titled-Tuesday-Blitz-September-26-2023"]
[Site "Chess.com"]
[Date "2023.09.26"]
[Round "1"]
[White "RCone"]
[Black "ArtemDyachuk"]
[Result "1/2-1/2"]
[WhiteElo "2404"]
[BlackElo "2693"]
[TimeControl "180+1"]
[EndTime "14:08:55 PDT"]
[Termination "Game drawn - insufficient material"]

1. e4 {[%clk 0:02:59.1]} 1... c5 {[%clk 0:02:57.7]} 2. Nc3 {[%clk 0:02:59.3]}
2... d6 {[%clk 0:02:57.3]} 3. f4 {[%clk 0:02:57.9]} 3... Nc6 {[%clk 0:02:56.5]}
4. Nf3 {[%clk 0:02:56.8]} 4... g6 {[%clk 0:02:55.4]} 5. Bb5 {[%clk 0:02:55.8]}
5... Bg7 {[%clk 0:02:55]} 6. Bxc6+ {[%clk 0:02:54]} 6... bxc6 {[%clk 0:02:54.7]}
7. d3 {[%clk 0:02:54.4]} 7... e6 {[%clk 0:02:46.6]} 8. O-O {[%clk 0:02:48]} 8...
Ne7 {[%clk 0:02:46.4]} 9. f5 {[%clk 0:02:19]} 9... exf5 {[%clk 0:02:44.4]} 10.
Bg5 {[%clk 0:01:56.9]} 10... O-O {[%clk 0:02:43.6]} 11. exf5 {[%clk 0:01:53.6]}
11... Bxf5 {[%clk 0:02:42.5]} 12. Nh4 {[%clk 0:01:53.3]} 12... Be6 {[%clk
0:02:36.2]} 13. Qe2 {[%clk 0:01:45.8]} 13... h6 {[%clk 0:02:24.5]} 14. Nxg6
{[%clk 0:01:19.1]} 14... hxg5 {[%clk 0:02:16.9]} 15. Nxf8 {[%clk 0:01:18]} 15...
Qxf8 {[%clk 0:02:08.3]} 16. Ne4 {[%clk 0:01:17.6]} 16... Bd4+ {[%clk 0:01:26]}
17. Kh1 {[%clk 0:01:17]} 17... Qh6 {[%clk 0:01:01.8]} 18. Nxd6 {[%clk
0:00:58.5]} 18... Rf8 {[%clk 0:00:33.6]} 19. c3 {[%clk 0:00:51.5]} 19... Bg7
{[%clk 0:00:30.6]} 20. Ne4 {[%clk 0:00:50.6]} 20... Ng6 {[%clk 0:00:24.7]} 21.
g3 {[%clk 0:00:48.9]} 21... f5 {[%clk 0:00:14.3]} 22. Nxg5 {[%clk 0:00:45.1]}
22... Bd5+ {[%clk 0:00:14.4]} 23. Nf3 {[%clk 0:00:45.1]} 23... Ne5 {[%clk
0:00:11.6]} 24. Kg1 {[%clk 0:00:40.5]} 24... Nxf3+ {[%clk 0:00:07]} 25. Rxf3
{[%clk 0:00:41.4]} 25... Bxf3 {[%clk 0:00:07.2]} 26. Qxf3 {[%clk 0:00:42.3]}
26... Qe6 {[%clk 0:00:06.9]} 27. Rf1 {[%clk 0:00:36]} 27... c4 {[%clk
0:00:06.8]} 28. d4 {[%clk 0:00:34.9]} 28... Qd5 {[%clk 0:00:06.9]} 29. Qf4
{[%clk 0:00:31.9]} 29... Kh7 {[%clk 0:00:05.9]} 30. Re1 {[%clk 0:00:30.9]} 30...
Rf7 {[%clk 0:00:05.6]} 31. Qh4+ {[%clk 0:00:29.1]} 31... Bh6 {[%clk 0:00:05.4]}
32. Re5 {[%clk 0:00:18.6]} 32... Qf3 {[%clk 0:00:04.9]} 33. Re7 {[%clk
0:00:12.5]} 33... Rxe7 {[%clk 0:00:03.8]} 34. Qxe7+ {[%clk 0:00:13.4]} 34... Kg6
{[%clk 0:00:02.5]} 35. Qe8+ {[%clk 0:00:13.1]} 35... Kg7 {[%clk 0:00:02.5]} 36.
Qe7+ {[%clk 0:00:12.9]} 36... Kg6 {[%clk 0:00:02.9]} 37. Qe8+ {[%clk 0:00:12.9]}
37... Kh7 {[%clk 0:00:03.5]} 38. Qf7+ {[%clk 0:00:12.4]} 38... Bg7 {[%clk
0:00:03.6]} 39. Qxc4 {[%clk 0:00:11.9]} 39... Kg6 {[%clk 0:00:02.3]} 40. Qe6+
{[%clk 0:00:11.4]} 40... Bf6 {[%clk 0:00:02.4]} 41. b3 {[%clk 0:00:08.9]} 41...
f4 {[%clk 0:00:02]} 42. Qg8+ {[%clk 0:00:06.6]} 42... Kf5 {[%clk 0:00:01.9]} 43.
Qh7+ {[%clk 0:00:06.6]} 43... Ke6 {[%clk 0:00:01.5]} 44. Qg8+ {[%clk 0:00:06.8]}
44... Ke7 {[%clk 0:00:02]} 45. Qh7+ {[%clk 0:00:06.6]} 45... Kf8 {[%clk
0:00:02.4]} 46. Qh6+ {[%clk 0:00:05.6]} 46... Kf7 {[%clk 0:00:02.9]} 47. Qh7+
{[%clk 0:00:05.5]} 47... Bg7 {[%clk 0:00:03.3]} 48. Qf5+ {[%clk 0:00:05.6]}
48... Ke7 {[%clk 0:00:03.5]} 49. Qxf4 {[%clk 0:00:06.1]} 49... Qxc3 {[%clk
0:00:03.5]} 50. Qg5+ {[%clk 0:00:05.3]} 50... Kf7 {[%clk 0:00:03.5]} 51. Qf5+
{[%clk 0:00:05.3]} 51... Ke7 {[%clk 0:00:03.8]} 52. Qg5+ {[%clk 0:00:05.3]}
52... Bf6 {[%clk 0:00:03.7]} 53. Qc5+ {[%clk 0:00:05]} 53... Qxc5 {[%clk
0:00:03.4]} 54. dxc5 {[%clk 0:00:05.9]} 54... Ke6 {[%clk 0:00:03.7]} 55. Kg2
{[%clk 0:00:06.8]} 55... Kd5 {[%clk 0:00:03.9]} 56. Kf3 {[%clk 0:00:05.4]} 56...
Kxc5 {[%clk 0:00:04.2]} 57. Ke4 {[%clk 0:00:05.8]} 57... Kb4 {[%clk 0:00:04]}
58. h4 {[%clk 0:00:06.1]} 58... Ka3 {[%clk 0:00:03.8]} 59. Kf5 {[%clk
0:00:06.1]} 59... Bh8 {[%clk 0:00:02.8]} 60. h5 {[%clk 0:00:05.2]} 60... Kxa2
{[%clk 0:00:03]} 61. b4 {[%clk 0:00:05.4]} 61... Kb3 {[%clk 0:00:02.9]} 62. g4
{[%clk 0:00:06.3]} 62... Kxb4 {[%clk 0:00:03.2]} 63. g5 {[%clk 0:00:07.2]} 63...
c5 {[%clk 0:00:03]} 64. h6 {[%clk 0:00:08.1]} 64... c4 {[%clk 0:00:03.4]} 65. g6
{[%clk 0:00:09]} 65... c3 {[%clk 0:00:03.8]} 66. g7 {[%clk 0:00:09.9]} 66...
Bxg7 {[%clk 0:00:03.6]} 67. hxg7 {[%clk 0:00:10.8]} 67... c2 {[%clk 0:00:03.9]}
68. g8=Q {[%clk 0:00:10.9]} 68... c1=Q {[%clk 0:00:04.3]} 69. Qb8+ {[%clk
0:00:09.8]} 69... Kc3 {[%clk 0:00:03.9]} 70. Qxa7 {[%clk 0:00:10.7]} 70... Qf1+
{[%clk 0:00:03.2]} 71. Kg5 {[%clk 0:00:10.8]} 71... Qg2+ {[%clk 0:00:02.6]} 72.
Kf5 {[%clk 0:00:11.1]} 72... Qd5+ {[%clk 0:00:02.5]} 73. Kg4 {[%clk 0:00:10.5]}
73... Qe4+ {[%clk 0:00:02.4]} 74. Kg5 {[%clk 0:00:10.5]} 74... Qg2+ {[%clk
0:00:01.9]} 75. Kf4 {[%clk 0:00:10.6]} 75... Qd2+ {[%clk 0:00:02.2]} 76. Kg4
{[%clk 0:00:10.8]} 76... Qd4+ {[%clk 0:00:02.2]} 77. Qxd4+ {[%clk 0:00:10.1]}
77... Kxd4 {[%clk 0:00:03.1]} 1/2-1/2